bitfinex-derivatives/quotes_ETHF0:USTF0_20250602
["timestamp","ask_amount","ask_price","bid_price","bid_amount"]
[1748849263276,4.5735,2506.4,2506.3,0.47855]
[1748849263483,27.3949,2506.4,2506.2,0.47856]
[1748849263686,27.87343,2506.4,2506.2,0.47856]
[1748849264377,27.3949,2506.4,2506.2,0.47856]
[1748849264781,27.3949,2506.4,2506.3,0.47855]
[1748849265884,27.87344,2506.4,2506.2,0.47856]
[1748849266084,27.3949,2506.4,2506.2,0.47856]
[1748849266483,3.4072,2506.4,2506.3,0.47855]
[1748849267583,0.1994,2506.4,2506.3,0.47855]
[1748849268082,0.1994,2506.4,2506.3,1.76565]
[1748849268778,0.1994,2506.4,2506.3,0.47855]
[1748849268983,18.7654,2506.4,2506.2,0.47857]
[1748849269184,18.7654,2506.4,2506.3,0.47856]
[1748849269381,18.7654,2506.4,2506.3,0.54925789]
[1748849269686,0.1994,2506.4,2506.3,0.54925789]
[1748849269881,18.7634,2506.4,2506.3,0.54925789]
[1748849271480,0.1994,2506.4,2506.3,0.54925789]
[1748849273288,0.67794,2506.4,2506.3,0.07069789]
[1748849273585,0.1994,2506.4,2506.3,0.54925789]
[1748849278685,22.41274,2506.4,2506.3,0.07069789]
[1748849278885,23.80054,2506.4,2506.3,0.07069789]
[1748849280689,24.50004,2506.4,2506.3,0.07069789]
[1748849282185,0.47863,2506.0,2505.9,3.2078]
[1748849282987,1.81033,2506.0,2505.9,3.2078]
[1748849283191,0.47866,2505.9,2505.8,3.2078]
[1748849283390,1.3317,2505.9,2505.8,3.68647]
[1748849283590,1.81035,2505.9,2505.8,3.2078]
[1748849283897,0.47869,2505.7,2505.5,2.05562659]
[1748849284088,0.47869,2505.7,2505.5,1.57691659]
[1748849284089,23.05769,2505.7,2505.5,1.57691659]
[1748849284288,23.05769,2505.7,2505.5,2.05564659]
[1748849284289,0.1995,2505.6,2505.5,2.05564659]
[1748849284483,1.5312,2505.6,2505.5,1.57691659]
[1748849284684,1.5312,2505.6,2505.5,0.47873]
[1748849284989,0.1995,2505.6,2505.5,8.32894659]
[1748849285189,0.1995,2505.6,2505.5,9.1010771]
[1748849286087,0.1995,2505.6,2505.5,4.1010771]
[1748849286695,0.1995,2505.6,2505.5,9.1010771]
[1748849287494,0.1995,2505.6,2505.5,4.1010771]
[1748849288593,0.1995,2505.6,2505.5,1.75203]
[1748849288895,0.1995,2505.6,2505.5,3.33260155]
[1748849289089,0.1995,2505.6,2505.4,2.3490471]
[1748849289391,0.1995,2505.6,2505.5,2.05948293]
[1748849289591,0.1995,2505.6,2505.5,1.76913]
[1748849289892,0.1995,2505.6,2505.5,3.34988293]
[1748849291295,0.1995,2505.6,2505.5,1.76913]
[1748849291489,0.1995,2505.6,2505.5,3.35057585]
[1748849291689,0.1995,2505.6,2505.5,1.76913]
[1748849291997,0.1995,2505.6,2505.5,3.35059229]
[1748849292199,0.1995,2505.6,2505.5,1.76913]
[1748849292496,0.1995,2505.6,2505.5,3.35059229]
[1748849293293,0.67821,2505.6,2505.5,2.87186229]
[1748849293597,0.1995,2505.6,2505.5,0.47873]
[1748849294097,0.1995,2505.6,2505.5,2.06019229]
[1748849294295,0.1995,2505.6,2505.5,0.47873]
[1748849294491,0.47873,2505.5,2505.4,1.58146229]
[1748849294799,0.47876,2505.3,2505.2,1.58146229]
[1748849294995,1.87006,2505.4,2505.2,0.47878]
[1748849295200,3.22116,2505.4,2505.3,1.18643203]
[1748849295400,3.22116,2505.4,2505.2,1.18643203]
[1748849295700,2.7424,2505.4,2505.2,1.18643203]
[1748849296098,3.22116,2505.4,2505.2,1.18643203]
[1748849296299,2.7424,2505.4,2505.2,1.66521203]
[1748849296696,0.47876,2505.3,2505.1,4.39423203]
[1748849296892,1.3511,2505.3,2505.1,4.39423203]
[1748849297203,18.511,2505.2,2505.1,4.87303203]
[1748849297501,18.511,2505.2,2505.1,4.87238617]
[1748849297897,1.3511,2505.3,2505.2,0.47878]
[1748849298093,1.3511,2505.3,2505.1,4.39358617]
[1748849298094,23.04777,2505.3,2505.1,4.39358617]
[1748849298299,24.42317,2505.3,2505.1,4.39358617]
[1748849298602,24.42317,2505.3,2505.1,3.2078]
[1748849298801,24.42317,2505.3,2505.1,4.39358617]
[1748849299099,0.47878,2505.2,2505.1,3.2078]
[1748849299302,1.85418,2505.2,2505.1,3.2078]
[1748849299492,1.85418,2505.2,2504.9,2.36221617]
[1748849299801,3.2078,2505.0,2504.7,1.18578617]
[1748849300001,0.47888,2504.7,2504.6,1.18578617]
[1748849300305,0.47888,2504.7,2504.5,1.58146229]
[1748849300306,3.68668,2504.7,2504.5,1.18578617]
[1748849300597,23.07891,2504.6,2504.3,1.66473617]
[1748849300791,23.07891,2504.6,2504.3,2.54458617]
[1748849300998,0.47894,2504.4,2504.2,1.18578617]
[1748849301197,1.307,2504.3,2504.2,1.66476617]
[1748849301400,1.78596,2504.3,2504.2,1.18578617]
[1748849301597,1.78596,2504.3,2504.0,4.87167438]
[1748849301798,1.78596,2504.3,2504.0,3.6868]
[1748849301998,1.983,2504.3,2504.1,0.47899]
[1748849302294,4.064,2504.2,2503.9,1.18487438]
[1748849302505,0.47903,2503.9,2503.6,4.87175438]
[1748849302800,0.47908,2503.7,2503.4,3.13733]
[1748849303002,0.47912,2503.5,2503.2,3.24550667]
[1748849303201,4.064,2503.4,2503.3,0.47914]
[1748849303502,4.064,2503.4,2503.3,0.47915]
[1748849303805,4.064,2503.4,2503.0,2.54367438]
[1748849303806,4.064,2503.4,2503.2,0.47916]
[1748849303995,4.064,2503.4,2503.0,1.3588]
[1748849304197,7.2718,2503.4,2502.9,1.18487438]
[1748849304393,4.064,2503.4,2503.2,0.47916]
[1748849304701,4.064,2503.4,2502.9,1.3301]
[1748849305402,5.3801,2503.4,2503.2,0.47917]
[1748849306008,18.556,2503.3,2502.9,1.3301]
[1748849306299,1.9921,2503.6,2503.2,0.47917]
[1748849306505,22.621,2503.5,2502.9,1.3301]
[1748849306704,23.8964,2503.5,2503.3,0.47914]
[1748849307105,23.8964,2503.5,2502.5,2.379218]
[1748849307106,3.2078,2503.4,2502.5,3.2078]
[1748849307303,3.687,2503.1,2502.5,4.5009]
[1748849307502,5.82361,2503.0,2502.7,0.47925]
[1748849307908,3.2078,2502.8,2502.5,1.2931]
[1748849308211,0.47932,2502.5,2502.1,0.47937]
[1748849308406,0.00598432,2502.6,2501.9,3.2078]
[1748849308605,18.56398432,2502.6,2502.5,0.4793]
[1748849309308,18.56398432,2502.6,2502.3,1.2931]
[1748849309603,18.56398432,2502.6,2502.4,0.47931]
[1748849310210,18.56398432,2502.6,2502.5,0.4793]
[1748849311214,18.56398432,2502.6,2502.4,0.47931]
[1748849311515,18.56398432,2502.6,2502.2,0.47935]
[1748849311516,3.68711,2502.5,2502.2,0.47935]
[1748849311810,4.5594,2502.5,2502.2,0.47934]
[1748849312003,4.5594,2502.5,2502.0,1.3937]
[1748849312204,4.5594,2502.5,2502.3,0.47933]
[1748849312400,4.5594,2502.5,2502.0,1.3937]
[1748849312401,4.5594,2502.5,2502.2,0.47934]
[1748849312605,5.03871,2502.5,2502.2,0.47935]
[1748849312810,4.5594,2502.5,2502.3,0.47933]
[1748849313109,4.5594,2502.5,2502.0,1.3937]
[1748849313309,22.635,2502.4,2502.3,0.47934]
[1748849314308,0.00598432,2502.6,2502.2,3.2078]
[1748849314613,0.00598432,2502.6,2502.1,1.19844]
[1748849314614,0.00598432,2502.6,2502.5,3.6871]
[1748849315101,0.00598432,2502.6,2502.5,3.75779789]
[1748849315300,0.00598432,2502.6,2502.5,10.10319789]
[1748849315500,0.00598432,2502.6,2502.5,5.10319789]
[1748849315803,0.20568432,2502.6,2502.5,5.10319789]
[1748849316200,0.20568432,2502.6,2502.5,3.27849789]
[1748849316403,4.27668432,2502.6,2502.5,0.07069789]
[1748849316609,4.75596432,2502.6,2502.5,0.07069789]
[1748849316809,6.14956432,2502.6,2502.5,0.07069789]
[1748849317513,5.67028432,2502.6,2502.5,0.54999789]
[1748849317701,4.27668432,2502.6,2502.5,0.54999789]
[1748849317906,0.20568432,2502.6,2502.5,0.54999789]
[1748849318408,0.20568432,2502.6,2502.5,1.86219789]
[1748849319013,0.20568432,2502.6,2502.5,2.55899789]
[1748849321314,0.20568432,2502.6,2502.5,7.55899789]
[1748849321315,4.32e-06,2502.6,2502.5,7.55899789]
[1748849322121,4.32e-06,2502.6,2502.5,48.35899789]
[1748849322519,3.2078,2503.3,2503.2,0.47917]
[1748849324318,0.00598432,2503.5,2503.4,0.47913]
[1748849325314,0.00598432,2503.5,2503.2,1.3403]
[1748849325520,0.00598432,2503.5,2503.4,0.47913]
[1748849327219,9.07698432,2503.5,2503.1,0.47918]
[1748849327420,0.47914,2503.4,2503.1,0.47918]
[1748849327718,1.3123,2503.3,2503.2,0.47917]
[1748849327914,0.66988432,2503.5,2502.9,4.5226]
[1748849328223,0.00598432,2503.5,2503.4,0.47913]
[1748849329617,0.00598432,2503.5,2503.4,1.86043]
[1748849330319,0.00598432,2503.5,2503.4,1.93112789]
[1748849332828,0.00598432,2503.5,2503.4,6.93112789]
[1748849333114,0.00598432,2503.5,2503.4,4.30347587]
[1748849333721,0.00598432,2503.5,2503.4,1.93112789]
[1748849334118,0.00598432,2503.5,2503.4,6.93112789]
[1748849334310,0.00598432,2503.5,2503.4,9.30347587]
[1748849335318,0.00598432,2503.5,2503.4,6.93112789]
[1748849335524,0.00598432,2503.5,2503.4,8.51105572]
[1748849335724,0.00598432,2503.5,2503.4,6.93112789]
[1748849336522,0.00598432,2503.5,2503.4,8.51053994]
[1748849337518,0.00598432,2503.5,2503.4,3.51053994]
[1748849338425,0.00598432,2503.5,2503.4,2.12923994]
[1748849338626,0.00598432,2503.5,2503.4,1.94832789]
[1748849338818,0.00598432,2503.5,2503.4,3.13315923]
[1748849339926,0.00598432,2503.5,2503.4,3.52773994]
[1748849342215,0.00598432,2503.5,2503.4,0.54982789]
[1748849342843,0.00598432,2503.5,2503.4,1.73579426]
[1748849343128,0.00598432,2503.5,2503.4,0.54982789]
[1748849343627,0.00598432,2503.5,2503.4,1.73672775]
[1748849345531,0.00598432,2503.5,2503.4,0.54982789]
[1748849346426,0.00598432,2503.5,2503.4,2.12923994]
[1748849347518,0.00598432,2503.5,2503.4,2.92217587]
[1748849348731,4.32e-06,2503.5,2503.4,0.54982789]
[1748849348925,4.32e-06,2503.5,2503.4,4.95963184]
[1748849349225,4.32e-06,2503.5,2503.4,5.74345783]
[1748849349428,4.32e-06,2503.5,2503.4,46.54345783]
[1748849349934,4.32e-06,2503.5,2503.4,42.62432789]
[1748849350624,4.32e-06,2503.5,2503.4,45.80000012]
[1748849351132,4.32e-06,2503.5,2503.4,42.62432789]
[1748849352731,4.32e-06,2503.5,2503.4,45.80000012]
[1748849353331,4.32e-06,2503.5,2503.4,49.89000012]
[1748849353524,4.32e-06,2503.5,2503.4,45.80000012]
[1748849353727,4.32e-06,2503.5,2503.4,42.62432789]
[1748849355735,4.32e-06,2503.5,2503.4,0.54982789]
[1748849356228,4.32e-06,2503.5,2503.4,41.34982789]
[1748849356433,4.32e-06,2503.5,2503.4,0.54982789]
[1748849357232,1.34060432,2503.5,2503.4,2.93224097]
[1748849358629,1.34060432,2503.5,2503.4,2.45311097]
[1748849358838,1.81971432,2503.5,2503.4,1.65960199]
[1748849359632,1.34060432,2503.5,2503.4,1.65960199]
[1748849359833,4.32e-06,2503.5,2503.4,2.13873199]
[1748849360128,4.32e-06,2503.5,2503.4,0.54982789]
[1748849360330,4.32e-06,2503.5,2503.4,2.93224097]
[1748849362132,4.32e-06,2503.5,2503.4,0.54982789]
[1748849363231,4.32e-06,2503.5,2503.4,1.87852789]
[1748849364232,4.32e-06,2503.5,2503.4,3.72513092]
[1748849364430,4.32e-06,2503.5,2503.4,2.93211127]
[1748849364832,4.32e-06,2503.5,2503.4,0.54982789]
[1748849365931,4.32e-06,2503.5,2503.4,6.89302789]
[1748849366136,4.32e-06,2503.5,2503.4,10.81215783]
[1748849366329,4.32e-06,2503.5,2503.4,6.89302789]
[1748849367134,3.2078,2504.2,2504.1,0.479]
[1748849367544,3.2078,2504.2,2504.1,2.86003605]
[1748849367834,3.2078,2504.2,2504.1,0.479]
[1748849368436,3.2078,2504.2,2503.8,3.17471473]
[1748849368645,0.47911,2503.5,2503.4,0.07069789]
[1748849368940,22.29091,2503.5,2503.4,1.26215335]
[1748849369448,27.29091,2503.5,2503.4,0.07069789]
[1748849371638,27.29491,2503.5,2503.4,0.07069789]
[1748849371845,8.68691,2503.5,2503.4,0.07069789]
[1748849372144,22.29291,2503.5,2503.4,0.07069789]
[1748849372942,3.2078,2503.5,2503.4,0.07069789]
[1748849373140,21.8088,2503.5,2503.4,0.07069789]
[1748849373742,3.2078,2503.5,2503.4,0.54982789]
[1748849375542,3.2078,2503.5,2503.4,1.84752789]
[1748849375748,3.2078,2503.5,2503.4,3.43592184]
[1748849376344,3.2078,2503.5,2503.4,1.84752789]
[1748849376744,3.2078,2503.5,2503.4,2.52212789]
[1748849378047,3.8459,2503.8,2503.7,0.47907]
[1748849379954,3.8459,2503.8,2503.6,2.06582874]
[1748849380146,3.8459,2503.8,2503.6,1.58673874]
[1748849380343,0.47907,2503.7,2503.6,1.58673874]
[1748849380549,0.47909,2503.6,2503.5,1.58673874]
[1748849380752,0.47909,2503.6,2503.4,1.65743663]
[1748849380953,1.2972,2503.5,2503.4,1.65743663]
[1748849381457,1.2972,2503.5,2503.4,0.07069789]
[1748849381653,1.2972,2503.5,2503.4,0.54982789]
[1748849381856,1.2972,2503.5,2503.4,0.07069789]
[1748849383956,1.2972,2503.5,2503.4,0.54982789]
[1748849384157,0.6584,2503.7,2503.4,1.65743663]
[1748849384358,22.4229,2503.8,2503.7,0.47907]
[1748849384955,3.8459,2503.8,2503.7,0.47907]
[1748849385157,3.8459,2503.8,2503.5,3.54036188]
[1748849385355,3.8459,2503.8,2503.5,1.58806188]
[1748849385554,1.3029,2503.7,2503.5,2.06717188]
[1748849385751,1.3029,2503.7,2503.5,0.47911]
[1748849385752,19.8879,2503.7,2503.5,0.47911]
[1748849385952,19.8879,2503.7,2503.4,1.65875977]
[1748849386152,3.2078,2503.5,2503.4,2.13788977]
[1748849386857,3.2078,2503.5,2503.4,1.65875977]
[1748849387050,3.2078,2503.5,2503.4,2.13788977]
[1748849387448,3.68691,2503.5,2503.4,0.07069789]
[1748849387651,4.4758,2503.5,2503.4,0.07069789]
[1748849387852,4.95491,2503.5,2503.4,0.07069789]
[1748849388259,4.4758,2503.5,2503.4,0.07069789]
[1748849388647,4.4758,2503.5,2503.4,0.54982789]
[1748849388851,4.4758,2503.5,2503.4,0.07069789]
[1748849389047,4.4758,2503.5,2503.4,0.54982789]
[1748849389259,4.4758,2503.5,2503.3,1.58806188]
[1748849389664,0.6989,2503.4,2503.3,2.06721188]
[1748849390158,1.17803,2503.4,2503.3,1.58806188]
[1748849390359,2.54994,2503.4,2503.2,2.0732162]
[1748849391056,3.22384,2503.4,2503.2,2.0732162]
[1748849391256,0.47915,2503.3,2503.2,1.5940462]
[1748849391457,1.85105,2503.3,2503.2,0.00598432]
[1748849396057,3.2078,2503.5,2503.2,0.00598432]
[1748849396260,3.2078,2503.5,2503.3,0.47915]
[1748849396468,3.68692,2503.5,2503.3,1.80155]
[1748849397253,3.2078,2503.5,2503.4,0.47913]
[1748849397459,3.2078,2503.5,2503.4,1.80153]
[1748849397759,3.68691,2503.5,2503.4,1.80153]
[1748849397963,3.2078,2503.5,2503.4,1.80153]
[1748849398266,3.2078,2503.5,2503.4,0.47913]
[1748849398453,3.2078,2503.5,2503.3,2.0019]
[1748849398763,21.7578,2503.5,2503.4,0.47913]
[1748849398964,21.7578,2503.5,2503.4,1.84673]
[1748849399653,3.2078,2503.5,2503.4,1.84673]
[1748849399854,0.6599,2504.1,2503.4,7.95566188]
[1748849399855,3.2078,2504.1,2503.4,7.95566188]
[1748849400163,3.2078,2504.1,2503.7,1.58791261]
[1748849400462,3.2078,2504.1,2503.9,0.47904]
[1748849400862,3.2078,2504.1,2503.8,0.47904]
[1748849400863,3.6868,2504.1,2503.8,0.47904]
[1748849401059,0.47902,2504.0,2503.7,2.95551261]
[1748849401260,0.47902,2504.0,2503.8,1.2864]
[1748849401456,0.47904,2503.9,2503.8,1.2864]
[1748849401663,0.47906,2503.8,2503.7,1.58791261]
[1748849401861,0.47906,2503.8,2503.7,0.47907]
[1748849401862,5.1783,2503.8,2503.7,0.47907]
[1748849402165,3.9042,2503.8,2503.6,2.06699261]
[1748849402361,3.9042,2503.8,2503.6,2.87431261]
[1748849402660,3.9042,2503.8,2503.5,1.6586105]
[1748849402661,0.47909,2503.6,2503.5,1.6586105]
[1748849402970,0.47909,2503.6,2503.5,0.07069789]
[1748849403262,5.1783,2503.8,2503.5,0.07069789]
[1748849403660,5.65736,2503.8,2503.6,0.47909]
[1748849404065,18.569,2503.7,2503.6,0.47908]
[1748849404369,19.04808,2503.7,2503.5,1.83620789]
[1748849404563,20.39778,2503.7,2503.5,1.76551]
[1748849404761,20.39778,2503.7,2503.5,0.4791]
[1748849405165,20.39778,2503.7,2503.5,0.47911]
[1748849405366,19.9187,2503.7,2503.5,0.47911]
[1748849405759,18.584,2503.7,2503.6,0.47909]
[1748849405961,3.9042,2503.8,2503.7,0.47907]
[1748849406169,21.7938,2503.8,2503.7,0.47907]
[1748849406364,3.2078,2503.8,2503.7,0.47907]
[1748849406569,3.2078,2503.8,2503.7,2.1376805]
[1748849406967,3.2078,2503.8,2503.7,4.33093681]
[1748849407165,3.68686,2503.8,2503.7,2.45256681]
[1748849407363,3.68686,2503.8,2503.7,0.07069789]
[1748849408060,3.88133546,2503.8,2503.7,0.07069789]
[1748849408262,8.68686,2503.8,2503.7,0.07069789]
[1748849408466,9.37826,2503.8,2503.7,0.07069789]
[1748849409070,0.47915,2503.3,2503.2,0.00598432]
[1748849409371,21.8188,2503.3,2503.2,0.00598432]
[1748849409667,3.2078,2503.3,2503.2,0.00598432]
[1748849409867,21.8448,2503.3,2503.2,0.00598432]
[1748849410068,21.8448,2503.3,2503.2,0.48515432]
[1748849410274,22.32395,2503.3,2503.2,0.00598432]
[1748849410471,23.59945,2503.3,2503.2,0.00598432]
[1748849410772,23.79406263,2503.3,2503.2,0.00598432]
[1748849410975,23.59945,2503.3,2503.2,0.00598432]
[1748849411168,0.47925,2502.8,2502.7,1.58774809]
[1748849411369,0.47927,2502.7,2502.5,0.6307]
[1748849411567,18.648,2502.6,2502.5,0.6307]
[1748849411768,18.648,2502.6,2502.5,1.11]
[1748849412363,18.648,2502.6,2502.5,0.6307]
[1748849412567,18.648,2502.6,2502.5,0.4793]
[1748849413168,0.47931,2502.5,2502.3,1.59373241]
[1748849413473,3.2078,2502.7,2502.3,1.59373241]
[1748849413677,0.00598432,2502.8,2502.5,1.58774809]
[1748849413869,3.21378432,2502.8,2502.7,0.47927]
[1748849414065,0.00598432,2502.8,2502.7,0.47927]
[1748849414374,0.00598432,2502.8,2502.7,2.73831809]
[1748849414567,0.00598432,2502.8,2502.7,1.15057]
[1748849414771,0.00598432,2502.8,2502.7,3.53243892]
[1748849414970,0.00598432,2502.8,2502.7,1.15057]
[1748849415475,0.00598432,2502.8,2502.7,3.53243892]
[1748849416669,0.00598432,2502.8,2502.7,0.6713]
[1748849416870,0.00598432,2502.8,2502.7,1.15057]
[1748849417276,0.00598432,2502.8,2502.7,2.25755305]
[1748849417672,0.00598432,2502.8,2502.7,0.6713]
[1748849418681,0.47928,2502.7,2502.5,1.58625305]
[1748849418877,3.2078,2502.6,2502.5,1.58625305]
[1748849419070,3.2078,2502.6,2502.5,2.06555305]
[1748849419278,3.2078,2502.6,2502.5,3.39225305]
[1748849419479,3.2078,2502.6,2502.5,2.91295305]
[1748849419783,3.2078,2502.6,2502.3,2.72586737]
[1748849419979,3.2078,2502.6,2502.4,0.47932]
[1748849420579,21.8878,2502.6,2502.3,1.99988432]
[1748849420779,0.47932,2502.5,2502.3,1.99988432]
[1748849421180,23.6282,2502.6,2502.3,1.99988432]
[1748849421375,23.6282,2502.6,2502.3,2.47921432]
[1748849421575,23.6282,2502.6,2502.4,0.47932]
[1748849421780,23.1489,2502.6,2502.4,0.47932]
[1748849422275,23.62819,2502.6,2502.4,0.47932]
[1748849422480,23.62819,2502.6,2502.3,2.47921432]
[1748849422781,23.62819,2502.6,2502.4,0.47932]
[1748849423180,3.2078,2502.6,2502.5,0.4793]
[1748849423382,0.00598432,2502.8,2502.7,0.47927]
[1748849423880,0.00598432,2502.8,2502.7,0.54996789]
[1748849424082,0.00598432,2502.8,2502.7,2.52056789]
[1748849424279,0.00598432,2502.8,2502.7,4.10682094]
[1748849424583,3.2078,2503.2,2503.1,0.47919]
[1748849425887,3.2078,2503.2,2503.1,2.45009]
[1748849426381,3.2078,2503.2,2503.1,1.9709]
[1748849426688,3.2078,2503.2,2503.1,2.45009]
[1748849426984,0.19463222,2503.3,2503.2,0.47917]
[1748849427187,0.19463222,2503.3,2503.2,2.06202464]
[1748849427486,3.2078,2503.5,2503.4,0.47913]
[1748849428088,0.47913,2503.4,2503.1,0.6922]
[1748849428278,3.2078,2503.2,2503.1,0.6922]
[1748849428584,3.2078,2503.2,2503.1,1.17139]
[1748849428988,3.2078,2503.2,2503.1,0.6922]
[1748849429980,3.2078,2503.2,2503.1,1.17139]
[1748849430282,3.2078,2503.2,2503.0,0.4792]
[1748849430782,4.98458,2503.2,2502.9,41.4566]
[1748849430989,4.98458,2503.2,2502.9,41.93582]
[1748849431177,4.98458,2503.2,2503.0,0.47921]
[1748849431383,4.5054,2503.2,2503.0,0.47921]
[1748849432086,4.5054,2503.2,2503.0,0.47919]
[1748849432284,4.5054,2503.2,2503.0,1.77499]
[1748849432588,4.98457,2503.2,2503.0,1.2958]
[1748849433283,4.5054,2503.2,2503.0,1.77501]
[1748849433484,4.5054,2503.2,2503.1,0.47919]
[1748849433685,4.5054,2503.2,2503.0,1.775]
[1748849433995,4.5054,2503.2,2503.1,0.47919]
[1748849434394,4.5054,2503.2,2503.0,1.775]
[1748849434992,4.5054,2503.2,2503.1,0.07069789]
[1748849435393,4.5054,2503.2,2503.1,0.54988789]
[1748849435589,4.5054,2503.2,2503.1,0.07069789]
[1748849435792,4.5054,2503.2,2503.1,0.54988789]
[1748849436091,3.2078,2503.2,2503.1,0.54988789]
[1748849436489,14.17717,2503.2,2503.1,0.07069789]
[1748849438091,10.03317,2503.2,2503.1,0.07069789]
[1748849438287,23.73117,2503.2,2503.1,0.07069789]
[1748849439692,4.554,2503.2,2503.1,0.54988789]
[1748849440094,21.8998,2503.2,2503.1,0.54988789]
[1748849440497,3.2078,2503.2,2503.1,0.54988789]
[1748849441992,3.2078,2503.2,2503.1,0.07069789]
[1748849442391,20.43085,2503.3,2503.1,0.07069789]
[1748849442996,3.2078,2503.2,2503.1,0.07069789]
[1748849443199,3.68697,2503.2,2503.1,0.07069789]
[1748849443399,3.2078,2503.2,2503.1,0.07069789]
[1748849443900,3.68697,2503.2,2503.1,0.07069789]
[1748849445800,3.2078,2503.2,2503.1,0.07069789]
[1748849446093,3.68697,2503.2,2503.1,0.07069789]
[1748849446298,21.8688,2503.2,2503.1,0.07069789]
[1748849446507,3.2078,2503.2,2503.1,0.54988789]
[1748849447499,3.2078,2503.2,2503.1,0.07069789]
[1748849449898,3.68697,2503.2,2503.1,0.07069789]
[1748849450298,4.96937,2503.2,2503.1,0.07069789]
[1748849451504,3.2078,2503.2,2503.1,0.54988789]
[1748849451903,3.2078,2503.2,2503.1,1.81898789]
[1748849452503,3.2078,2503.2,2503.1,3.40360913]
[1748849453107,3.2078,2503.2,2503.1,2.92441913]
[1748849453303,3.2078,2503.2,2503.1,3.40360913]
[1748849455906,3.68697,2503.2,2503.1,1.65531913]
[1748849456102,3.68697,2503.2,2503.1,0.07069789]
[1748849456303,3.2078,2503.2,2503.1,0.54988789]
[1748849457303,3.68697,2503.2,2503.1,1.65531913]
[1748849457707,3.2078,2503.2,2503.1,2.13450913]
[1748849459007,3.2078,2503.2,2503.1,1.65531913]
[1748849459311,3.68697,2503.2,2503.1,1.65531913]
[1748849459504,3.2078,2503.2,2503.1,2.13450913]
[1748849459700,3.2078,2503.2,2503.1,2.93175681]
[1748849459905,3.21378432,2503.5,2503.4,0.47913]
[1748849460104,0.00598432,2503.5,2503.4,0.47913]
[1748849460409,3.2078,2504.3,2503.4,14.33289523]
[1748849460610,3.2078,2504.7,2503.7,1.19769]
[1748849460802,3.2078,2504.4,2504.2,2.38169716]
[1748849461004,3.68674,2504.4,2504.3,1.58787683]
[1748849461313,0.47898,2504.2,2504.1,0.00598432]
[1748849462107,1.83468,2504.2,2504.1,0.00598432]
[1748849463009,20.48668,2504.2,2504.1,0.00598432]
[1748849463211,20.6769118,2504.2,2504.1,0.00598432]
[1748849464407,0.3804637,2504.2,2504.1,0.00598432]
[1748849464612,18.8362318,2504.2,2504.1,0.00598432]
[1748849465213,19.3152118,2504.2,2504.1,0.00598432]
[1748849466114,20.6805118,2504.2,2504.1,0.00598432]
[1748849466320,18.8362318,2504.2,2504.1,0.00598432]
[1748849466817,18.8422318,2504.2,2504.1,0.00598432]
[1748849467017,19.3212118,2504.2,2504.1,1.30018432]
[1748849467518,19.3212118,2504.2,2504.1,0.00598432]
[1748849467711,20.6865118,2504.2,2504.1,0.00598432]
[1748849468321,0.1902318,2504.2,2504.1,0.00598432]
[1748849468522,0.1902318,2504.2,2504.1,0.48498432]
[1748849469218,0.1902318,2504.2,2504.1,0.00598432]
[1748849469422,0.6692118,2504.2,2504.1,0.00598432]
[1748849469822,0.1902318,2504.2,2504.1,1.32198432]
[1748849470215,0.1902318,2504.2,2504.1,2.45548432]
[1748849470826,0.1902318,2504.2,2504.1,7.45548432]
[1748849471123,0.1902318,2504.2,2504.1,9.04336115]
[1748849471319,0.1902318,2504.2,2504.1,7.45548432]
[1748849473813,0.00598432,2504.6,2504.5,0.47892]
[1748849474415,0.00598432,2504.6,2504.4,0.47893]
[1748849474416,3.21378432,2504.6,2504.4,0.47893]
[1748849474720,3.21378432,2504.6,2504.2,5.3942]
[1748849475021,3.21378432,2504.6,2504.5,0.47892]
[1748849478421,3.21378432,2504.6,2504.3,1.3122]
[1748849478924,3.21378432,2504.6,2504.5,0.47892]
[1748849479124,3.21378432,2504.6,2504.1,4.74248432]
[1748849479421,3.21378432,2504.6,2504.2,0.47897]
[1748849479422,1.2767,2504.5,2504.2,0.47897]
[1748849479626,3.2078,2504.3,2504.2,0.47897]
[1748849479824,0.47898,2504.2,2504.1,0.00598432]
[1748849480021,1.75568,2504.2,2504.1,0.00598432]
[1748849484321,1.2767,2504.2,2504.1,0.48498432]
[1748849484729,19.8677,2504.2,2504.1,0.48498432]
[1748849486435,3.2078,2504.3,2504.1,0.00598432]
[1748849486618,3.2078,2504.3,2504.2,0.47898]
[1748849486825,21.7898,2504.3,2504.2,0.47898]
[1748849487329,21.7898,2504.3,2504.2,1.84928]
[1748849488930,22.26876,2504.3,2504.2,1.3703]
[1748849489130,21.7898,2504.3,2504.2,1.3703]
[1748849489319,21.7898,2504.3,2504.2,1.84928]
[1748849489729,22.25476,2504.3,2504.2,1.3703]
[1748849489927,21.7758,2504.3,2504.2,1.3703]
[1748849490128,22.25476,2504.3,2504.2,1.3703]
[1748849490430,21.7758,2504.3,2504.2,1.3703]
[1748849491028,21.7758,2504.3,2504.2,1.84928]
[1748849491229,21.7758,2504.3,2504.2,1.3703]
[1748849491430,21.7758,2504.3,2504.2,0.47898]
[1748849492535,21.7758,2504.3,2504.2,1.77438]
[1748849492536,21.7618,2504.3,2504.2,1.77438]
[1748849493233,3.2078,2504.3,2504.2,1.77438]
[1748849493534,0.00598432,2504.6,2504.5,0.47892]
[1748849493535,3.21378432,2504.6,2504.5,0.47892]
[1748849494038,3.21378432,2504.6,2504.5,2.13267934]
[1748849494933,3.21378432,2504.6,2504.5,2.06198145]
[1748849495628,3.21378432,2504.6,2504.5,3.40548145]
[1748849499534,2.3817037,2505.8,2504.7,1.19721]
[1748849499730,6.2485037,2506.3,2505.5,3.2078]
[1748849500033,19.3072,2506.2,2505.7,1.66470177]
[1748849500229,0.47864,2506.0,2505.7,0.47868]
[1748849500529,1.308,2506.1,2505.8,0.47867]
[1748849500530,1.308,2505.9,2505.8,0.47867]
[1748849501030,18.62598432,2506.1,2505.8,0.47867]
[1748849501339,19.93398432,2506.1,2505.6,3.85350609]
[1748849501557,19.93398432,2506.1,2505.7,1.3522]
[1748849501831,1.31398432,2506.1,2506.0,0.47863]
[1748849502736,0.00598432,2506.1,2506.0,0.47863]
[1748849503331,3.2078,2506.3,2505.8,7.2768]